[Event "10th Cesme Open-B 2024"]
[Site "Cesme"]
[Date "2024.06.23"]
[Round "1"]
[White "Korkmaz, Necmettin"]
[Black "Sahin, Ata Sarp"]
[Result "1-0"]
[ECO "B51"]
[WhiteElo "1999"]
[BlackElo "1750"]
[Annotator "RC"]
[PlyCount "47"]
[EventDate "2024.06.23"]
[EventType "swiss"]
[EventCountry "TUR"]
[SourceTitle "playchess.com"]
[Source "ChessBase"]
[SourceQuality "1"]
[TimeControl "5400+30"]

1. e4 {[%emt 0:01:00]} c5 {[%emt 0:01:00]} 2. Nf3 {[%emt 0:00:30]} d6 {[%emt 0:00:30]} 3. Bb5+ {[%emt 0:00:30]} Nd7 {[%emt 0:00:30]} 4. a4 {[%emt 0:00:30]} Ngf6 {[%emt 0:00:30]} 5. Nc3 {[%emt 0:00:30]} a6 {[%emt 0:00:30]} 6. Be2 {[%emt 0:00:30]} e6 {[%emt 0:00:30]} 7. O-O {[%emt 0:00:30]} Be7 {[%emt 0:00:30]} 8. d4 {[%emt 0:00:30]} cxd4 {[%emt 0:00:30]} 9. Qxd4 {[%emt 0:00:30]} O-O {[%emt 0:00:30]} 10. Rd1 {[%emt 0:00:30]} b6 {[%emt 0:00:30]} 11. e5 {[%emt 0:00:30]} dxe5 {[%emt 0:00:30]} 12. Nxe5 {[%emt 0:00:30]} Bc5 {[%emt 0:00:30]} 13. Qf4 {[%emt 0:00:30]} Qc7 {[%emt 0:00:30]} 14. Bf3 {[%emt 0:00:30]} Ra7 {[%emt 0:00:30]} 15. Nc6 {[%emt 0:00:30]} Rb7 {[%emt 0:00:30]} 16. b4 {[%emt 0:00:30]} e5 {[%emt 0:00:30]} 17. Qg3 {[%emt 0:00:30]} Bd4 {[%emt 0:00:30]} 18. Bh6 {[%emt 0:00:30]} g6 {[%emt 0:00:30]} 19. Rxd4 {[%emt 0:00:30]} exd4 {[%emt 0:00:30]} 20. Bf4 {[%emt 0:00:30]} Nh5 {[%emt 0:00:30]} 21. Ne7+ {[%emt 0:00:30]} Kh8 {[%emt 0:00:30]} 22. Bxc7 {[%emt 0:00:30]} Nxg3 {[%emt 0:00:30]} 23. Bxg3 {[%emt 0:00:30]} dxc3 {[%emt 0:00:30]} 24. Nxc8 {[%emt 0:00:30]} 1-0

[Event "10th Cesme Open-B 2024"]
[Site "Cesme"]
[Date "2024.06.23"]
[Round "1"]
[White "Atis, Hasan"]
[Black "Ozkaynakci, Kayra"]
[Result "1-0"]
[ECO "B67"]
[WhiteElo "1988"]
[BlackElo "1703"]
[Annotator "RC"]
[PlyCount "91"]
[EventDate "2024.06.23"]
[EventType "swiss"]
[EventCountry "TUR"]
[SourceTitle "playchess.com"]
[Source "ChessBase"]
[SourceQuality "1"]
[TimeControl "5400+30"]

1. e4 {[%emt 0:01:00]} c5 {[%emt 0:01:00]} 2. Nf3 {[%emt 0:00:30]} d6 {[%emt 0:00:30]} 3. d4 {[%emt 0:00:30]} cxd4 {[%emt 0:00:30]} 4. Nxd4 {[%emt 0:00:30]} Nf6 {[%emt 0:00:30]} 5. Nc3 {[%emt 0:00:30]} Nc6 {[%emt 0:00:30]} 6. Bg5 {[%emt 0:00:00]} e6 {[%emt 0:00:30]} 7. Qd2 {[%emt 0:00:00]} a6 {[%emt 0:00:00]} 8. O-O-O {[%emt 0:00:00]} Bd7 {[%emt 0:00:00]} 9. Kb1 {[%emt 0:00:00]} Be7 {[%emt 0:07:30]} 10. Nxc6 {[%emt 0:01:30]} Bxc6 {[%emt 0:01:30]} 11. Bd3 {[%emt 0:00:30]} b5 {[%emt 0:07:30]} 12. f3 {[%emt 0:02:30]} Qc7 {[%emt 0:07:30]} 13. h4 {[%emt 0:00:30]} Rc8 {[%emt 0:08:30]} 14. g4 {[%emt 0:02:30]} b4 {[%emt 0:09:30]} 15. Ne2 {[%emt 0:00:30]} O-O {[%emt 0:10:30]} 16. Ng3 {[%emt 0:03:30]} Bb5 {[%emt 0:06:30]} 17. Bf4 {[%emt 0:07:30]} Nd7 {[%emt 0:05:30]} 18. Qe2 {[%emt 0:11:30]} Ne5 {[%emt 0:02:30]} 19. g5 {[%emt 0:02:30]} b3 {[%emt 0:07:30]} 20. axb3 {[%emt 0:00:30]} Bxd3 {[%emt 0:01:30]} 21. cxd3 {[%emt 0:00:30]} Qb7 {[%emt 0:00:30]} 22. d4 {[%emt 0:03:30]} Nc6 {[%emt 0:03:13]} 23. d5 {[%emt 0:03:30]} Nb4 {[%emt 0:04:02]} 24. Bd2 {[%emt 0:08:30]} a5 {[%emt 0:01:28]} 25. Rc1 {[%emt 0:10:30]} Rb8 {[%emt 0:04:20]} 26. Bc3 {[%emt 0:02:30]} Na6 {[%emt 0:01:51]} 27. Nh5 {[%emt 0:00:30]} e5 {[%emt 0:06:36]} 28. f4 {[%emt 0:00:30]} Nc5 {[%emt 0:00:58]} 29. fxe5 {[%emt 0:01:30]} Nxb3 {[%emt 0:00:22]} 30. exd6 {[%emt 0:14:30]} Nxc1 {[%emt 0:00:42]} 31. Rxc1 {[%emt 0:00:30]} Bxd6 {[%emt 0:01:31]} 32. Nxg7 {[%emt 0:00:00]} Bb4 {[%emt 0:00:38]} 33. Be5 {[%emt 0:02:00]} Rbc8 {[%emt 0:01:00]} 34. Rf1 {[%emt 0:00:30]} Bc3 {[%emt 0:00:11]} 35. Bxc3 {[%emt 0:01:30]} Rxc3 {[%emt 0:00:02]} 36. Nf5 {[%emt 0:02:31]} Rb3 {[%emt 0:01:01]} 37. Nh6+ {[%emt 0:00:52]} Kh8 {[%emt 0:00:16]} 38. Qf2 {[%emt 0:00:26]} f6 {[%emt 0:00:39]} 39. Qd4 {[%emt 0:01:40]} Qg7 {[%emt 0:00:38]} 40. Nf5 {[%emt 0:04:19]} Qb7 {[%emt 0:00:26]} 41. gxf6 {[%emt 0:01:35]} Qb6 {[%emt 0:00:31]} 42. Qxb6 {[%emt 0:01:54]} Rxb6 {[%emt 0:00:30]} 43. e5 {[%emt 0:00:30]} a4 {[%emt 0:00:30]} 44. Ka2 {[%emt 0:00:30]} Rc8 {[%emt 0:00:30]} 45. Rf2 {[%emt 0:00:30]} Kg8 {[%emt 0:00:30]} 46. Ne7+ {[%emt 0:00:30]} 1-0

[Event "10th Cesme Open-B 2024"]
[Site "Cesme"]
[Date "2024.06.23"]
[Round "1"]
[White "Dogan, Umut Anil"]
[Black "Akyuz, Kerem Arhan"]
[Result "0-1"]
[ECO "A25"]
[WhiteElo "1982"]
[BlackElo "1789"]
[Annotator "RC"]
[PlyCount "134"]
[EventDate "2024.06.23"]
[EventType "swiss"]
[EventCountry "TUR"]
[SourceTitle "playchess.com"]
[Source "ChessBase"]
[SourceQuality "1"]
[TimeControl "5400+30"]

1. c4 {[%emt 0:01:00]} e5 {[%emt 0:01:00]} 2. Nc3 {[%emt 0:00:30]} Nc6 {[%emt 0:00:30]} 3. g3 {[%emt 0:00:30]} g6 {[%emt 0:02:30]} 4. Bg2 {[%emt 0:00:00]} Bg7 {[%emt 0:00:30]} 5. a3 {[%emt 0:00:00]} a5 {[%emt 0:01:30]} 6. Rb1 {[%emt 0:00:30]} Nge7 {[%emt 0:01:30]} 7. b4 {[%emt 0:00:30]} axb4 {[%emt 0:01:30]} 8. axb4 {[%emt 0:00:30]} d6 {[%emt 0:02:30]} 9. d3 {[%emt 0:01:30]} O-O {[%emt 0:01:30]} 10. b5 {[%emt 0:01:30]} Nb8 {[%emt 0:02:30]} 11. e3 {[%emt 0:00:30]} c6 {[%emt 0:01:30]} 12. Nge2 {[%emt 0:00:30]} Be6 {[%emt 0:02:30]} 13. O-O {[%emt 0:03:30]} Qd7 {[%emt 0:02:30]} 14. Ne4 {[%emt 0:00:30]} h6 {[%emt 0:01:30]} 15. c5 {[%emt 0:04:30]} d5 {[%emt 0:04:30]} 16. Nd6 {[%emt 0:00:30]} Nc8 {[%emt 0:01:30]} 17. Nxc8 {[%emt 0:03:30]} Rxc8 {[%emt 0:00:30]} 18. d4 {[%emt 0:00:30]} Bf5 {[%emt 0:03:30]} 19. Rb4 {[%emt 0:01:30]} Qe7 {[%emt 0:09:30]} 20. Bb2 {[%emt 0:01:30]} Nd7 {[%emt 0:01:30]} 21. Nc3 {[%emt 0:03:30]} exd4 {[%emt 0:02:30]} 22. exd4 {[%emt 0:00:30]} Re8 {[%emt 0:00:00]} 23. Na4 {[%emt 0:05:30]} Qe2 {[%emt 0:03:00]} 24. Nc3 {[%emt 0:03:30]} Qxd1 {[%emt 0:01:30]} 25. Rxd1 {[%emt 0:00:30]} Nf6 {[%emt 0:02:30]} 26. f3 {[%emt 0:00:30]} Re3 {[%emt 0:03:30]} 27. g4 {[%emt 0:03:30]} Bd7 {[%emt 0:05:30]} 28. Kf2 {[%emt 0:00:00]} Rae8 {[%emt 0:00:30]} 29. Bf1 {[%emt 0:02:00]} h5 {[%emt 0:04:30]} 30. h3 {[%emt 0:01:30]} hxg4 {[%emt 0:01:30]} 31. hxg4 {[%emt 0:00:00]} Bxg4 {[%emt 0:02:30]} 32. fxg4 Nxg4+ {[%emt 0:00:30]} 33. Kg1 {[%emt 0:00:30]} Rg3+ {[%emt 0:00:00]} 34. Bg2 {[%emt 0:00:30]} Ne3 {[%emt 0:00:00]} 35. Rd2 {[%emt 0:01:30]} Nc4 {[%emt 0:01:30]} 36. Rxc4 {[%emt 0:02:30]} dxc4 {[%emt 0:00:30]} 37. bxc6 {[%emt 0:00:30]} bxc6 {[%emt 0:00:30]} 38. Ne2 {[%emt 0:01:30]} Rd3 {[%emt 0:02:30]} 39. Rc2 {[%emt 0:00:30]} c3 {[%emt 0:00:30]} 40. Nxc3 {[%emt 0:02:30]} Bxd4+ {[%emt 0:00:30]} 41. Kf1 {[%emt 0:00:30]} Re6 {[%emt 0:02:30]} 42. Ne4 {[%emt 0:01:30]} Bxb2 {[%emt 0:00:30]} 43. Rxb2 {[%emt 0:00:30]} Kg7 {[%emt 0:01:30]} 44. Rc2 {[%emt 0:00:30]} Ra3 {[%emt 0:04:30]} 45. Nd6 {[%emt 0:01:30]} Ra6 {[%emt 0:00:30]} 46. Kg1 {[%emt 0:03:30]} f5 {[%emt 0:00:30]} 47. Nb7 {[%emt 0:00:00]} Rf6 {[%emt 0:02:30]} 48. Nd6 {[%emt 0:01:00]} Kh6 {[%emt 0:00:30]} 49. Bf3 {[%emt 0:01:30]} Kg5 {[%emt 0:01:30]} 50. Rc4 {[%emt 0:01:30]} Re6 {[%emt 0:00:30]} 51. Rc2 {[%emt 0:06:30]} Kf6 {[%emt 0:00:30]} 52. Be2 {[%emt 0:00:30]} Ra3 {[%emt 0:00:30]} 53. Kf2 {[%emt 0:01:30]} g5 {[%emt 0:00:30]} 54. Bf3 {[%emt 0:00:00]} Ra6 {[%emt 0:00:30]} 55. Be2 {[%emt 0:00:00]} Ra7 {[%emt 0:00:30]} 56. Bf3 {[%emt 0:03:30]} Rc7 {[%emt 0:00:30]} 57. Bh5 {[%emt 0:01:30]} Rh7 {[%emt 0:00:30]} 58. Bf3 {[%emt 0:00:00]} g4 {[%emt 0:01:30]} 59. Bxc6 {[%emt 0:00:00]} f4 {[%emt 0:00:30]} 60. Kg2 {[%emt 0:07:30]} Re3 {[%emt 0:02:28]} 61. Ne4+ {[%emt 0:00:30]} Ke5 {[%emt 0:00:24]} 62. Nf2 {[%emt 0:00:30]} Kf5 {[%emt 0:00:52]} 63. Bb5 {[%emt 0:02:30]} g3 {[%emt 0:02:28]} 64. c6 {[%emt 0:01:30]} Rh2+ {[%emt 0:00:41]} 65. Kf1 {[%emt 0:00:30]} g2+ {[%emt 0:00:11]} 66. Kg1 {[%emt 0:01:30]} Re1+ {[%emt 0:00:11]} 67. Kxh2 {[%emt 0:01:30]} g1=Q+ {[%emt 0:00:14]} 0-1

[Event "10th Cesme Open-B 2024"]
[Site "Cesme"]
[Date "2024.06.23"]
[Round "1"]
[White "Yigit, Ahmet Yasir"]
[Black "Seker, Kadir Mert"]
[Result "1-0"]
[ECO "E63"]
[WhiteElo "1964"]
[BlackElo "1694"]
[Annotator "RC"]
[PlyCount "51"]
[EventDate "2024.06.23"]
[EventType "swiss"]
[EventCountry "TUR"]
[SourceTitle "playchess.com"]
[Source "ChessBase"]
[SourceQuality "1"]
[TimeControl "5400+30"]

1. Nf3 {[%emt 0:01:00]} Nf6 {[%emt 0:01:00]} 2. d4 {[%emt 0:00:30]} g6 {[%emt 0:00:30]} 3. c4 {[%emt 0:00:30]} Bg7 {[%emt 0:00:30]} 4. g3 {[%emt 0:00:30]} O-O {[%emt 0:01:30]} 5. Bg2 {[%emt 0:00:00]} d6 {[%emt 0:01:30]} 6. Nc3 {[%emt 0:00:00]} Nc6 {[%emt 0:03:30]} 7. O-O {[%emt 0:00:30]} a6 {[%emt 0:02:30]} 8. b3 {[%emt 0:02:30]} e5 {[%emt 0:05:30]} 9. Bb2 {[%emt 0:03:30]} Nd7 {[%emt 0:11:30]} 10. dxe5 {[%emt 0:05:30]} Ndxe5 {[%emt 0:00:30]} 11. Qc1 {[%emt 0:03:30]} Nxf3+ {[%emt 0:14:30]} 12. Bxf3 {[%emt 0:00:00]} Be6 {[%emt 0:02:30]} 13. Rd1 {[%emt 0:02:00]} Rc8 {[%emt 0:13:30]} 14. Rd2 {[%emt 0:04:30]} Qe7 {[%emt 0:02:30]} 15. Qf1 {[%emt 0:02:30]} Bh6 {[%emt 0:08:30]} 16. e3 {[%emt 0:00:30]} Ne5 {[%emt 0:01:30]} 17. Bg2 {[%emt 0:01:30]} Bg7 {[%emt 0:09:16]} 18. f4 {[%emt 0:02:30]} Ng4 {[%emt 0:01:38]} 19. Bxb7 {[%emt 0:06:30]} Rb8 {[%emt 0:00:24]} 20. Qf3 {[%emt 0:04:30]} Nxe3 {[%emt 0:02:04]} 21. Qxe3 {[%emt 0:02:30]} Rxb7 {[%emt 0:00:07]} 22. f5 {[%emt 0:00:30]} c5 {[%emt 0:06:45]} 23. fxe6 {[%emt 0:00:30]} Bd4 {[%emt 0:00:07]} 24. Rxd4 {[%emt 0:00:30]} cxd4 {[%emt 0:00:30]} 25. Qxd4 {[%emt 0:00:00]} fxe6 {[%emt 0:00:12]} 26. Ne4 {[%emt 0:00:00]} 1-0

[Event "10th Cesme Open-B 2024"]
[Site "Cesme"]
[Date "2024.06.23"]
[Round "1"]
[White "Yilmaz, Kerem Tuna"]
[Black "Dal, Emir Saygin"]
[Result "1/2-1/2"]
[ECO "B66"]
[WhiteElo "1962"]
[BlackElo "1788"]
[Annotator "RC"]
[PlyCount "74"]
[EventDate "2024.06.23"]
[EventType "swiss"]
[EventCountry "TUR"]
[SourceTitle "playchess.com"]
[Source "ChessBase"]
[SourceQuality "1"]
[TimeControl "5400+30"]

1. e4 {[%emt 0:01:00]} c5 {[%emt 0:01:00]} 2. Nf3 {[%emt 0:00:00]} d6 {[%emt 0:00:30]} 3. d4 {[%emt 0:00:00]} cxd4 {[%emt 0:00:30]} 4. Nxd4 {[%emt 0:00:30]} Nf6 {[%emt 0:00:00]} 5. Nc3 {[%emt 0:00:30]} Nc6 {[%emt 0:00:00]} 6. Bg5 {[%emt 0:02:30]} e6 {[%emt 0:04:30]} 7. Qd2 {[%emt 0:00:30]} a6 {[%emt 0:00:30]} 8. Nxc6 {[%emt 0:03:30]} bxc6 {[%emt 0:00:30]} 9. O-O-O {[%emt 0:00:00]} Be7 {[%emt 0:07:30]} 10. Bxf6 {[%emt 0:00:00]} gxf6 {[%emt 0:01:30]} 11. Bc4 {[%emt 0:00:00]} Rb8 {[%emt 0:01:30]} 12. Rhe1 {[%emt 0:08:00]} Qb6 {[%emt 0:10:30]} 13. Bb3 {[%emt 0:04:30]} Bd7 {[%emt 0:02:30]} 14. Na4 {[%emt 0:08:30]} Qb7 {[%emt 0:00:30]} 15. c4 {[%emt 0:15:30]} c5 {[%emt 0:08:30]} 16. f4 {[%emt 0:09:30]} Qb4 {[%emt 0:06:30]} 17. Qc2 {[%emt 0:03:30]} Kf8 {[%emt 0:03:30]} 18. Nc3 {[%emt 0:09:30]} Bc6 {[%emt 0:02:30]} 19. Qe2 {[%emt 0:09:30]} a5 {[%emt 0:03:30]} 20. Nd5 {[%emt 0:03:30]} Bxd5 {[%emt 0:08:30]} 21. exd5 {[%emt 0:02:28]} a4 {[%emt 0:21:12]} 22. Rd3 {[%emt 0:00:13]} Qa5 {[%emt 0:03:31]} 23. dxe6 {[%emt 0:05:53]} axb3 {[%emt 0:01:15]} 24. exf7 {[%emt 0:00:30]} Qc7 {[%emt 0:00:00]} 25. axb3 {[%emt 0:00:00]} d5 {[%emt 0:03:36]} 26. Rxd5 {[%emt 0:01:37]} Qxf4+ {[%emt 0:00:45]} 27. Kb1 {[%emt 0:00:17]} Qc7 {[%emt 0:02:08]} 28. Rd3 {[%emt 0:01:40]} h5 {[%emt 0:01:37]} 29. Rd5 {[%emt 0:03:04]} Rxb3 {[%emt 0:05:45]} 30. Rxh5 {[%emt 0:01:14]} Rxh5 {[%emt 0:00:45]} 31. Qxh5 {[%emt 0:00:30]} Kg7 {[%emt 0:00:30]} 32. Kc2 {[%emt 0:00:30]} Qb7 {[%emt 0:00:19]} 33. Qg4+ {[%emt 0:04:41]} Kxf7 {[%emt 0:00:30]} 34. Qe6+ {[%emt 0:00:30]} Kg6 {[%emt 0:00:00]} 35. Qg8+ {[%emt 0:01:49]} Kh6 {[%emt 0:00:00]} 36. Qh8+ {[%emt 0:01:01]} Kg6 {[%emt 0:00:00]} 37. Qg8+ {[%emt 0:01:31]} Kh6 {[%emt 0:00:00]} 1/2-1/2

[Event "10th Cesme Open-B 2024"]
[Site "Cesme"]
[Date "2024.06.23"]
[Round "1"]
[White "Buyuk, Eymen Eren"]
[Black "Gurel, Berke Talha"]
[Result "1-0"]
[ECO "E73"]
[WhiteElo "1894"]
[BlackElo "1648"]
[Annotator "NA RC"]
[PlyCount "65"]
[EventDate "2024.06.23"]
[EventType "swiss"]
[EventCountry "TUR"]
[SourceTitle "playchess.com"]
[Source "ChessBase"]
[SourceQuality "1"]
[TimeControl "5400+30"]

1. d4 {[%emt 0:01:00]} Nf6 {[%emt 0:01:00]} 2. c4 {[%emt 0:00:00]} g6 {[%emt 0:00:30]} 3. Nc3 {[%emt 0:00:00]} Bg7 {[%emt 0:00:30]} 4. e4 {[%emt 0:00:30]} d6 {[%emt 0:00:30]} 5. Be2 {[%emt 0:00:30]} O-O {[%emt 0:00:30]} 6. Be3 {[%emt 0:00:00]} c5 {[%emt 0:00:30]} 7. dxc5 {[%emt 0:00:00]} Qa5 {[%emt 0:01:30]} 8. f3 {[%emt 0:00:00]} dxc5 {[%emt 0:00:30]} 9. e5 {[%emt 0:00:00]} Nfd7 {[%emt 0:06:30]} 10. f4 {[%emt 0:00:30]} Rd8 {[%emt 0:00:30]} 11. Qa4 {[%emt 0:02:30]} Qxa4 {[%emt 0:26:30]} 12. Nxa4 {[%emt 0:02:30]} Nf8 {[%emt 0:00:30]} 13. Nxc5 {[%emt 0:11:30]} Nc6 {[%emt 0:03:30]} 14. Bf3 {[%emt 0:17:30]} Nb4 {[%emt 0:18:30]} 15. Kf2 {[%emt 0:01:30]} Ne6 {[%emt 0:00:30]} 16. Nxe6 {[%emt 0:16:30]} Bxe6 {[%emt 0:00:30]} 17. b3 {[%emt 0:00:30]} f6 {[%emt 0:02:30]} 18. Nh3 {[%emt 0:03:30]} fxe5 {[%emt 0:10:30]} 19. fxe5 {[%emt 0:00:30]} Nd3+ {[%emt 0:01:30]} 20. Ke2 {[%emt 0:00:30]} Nxe5 {[%emt 0:00:00]} 21. Nf4 {[%emt 0:00:30]} Bf7 {[%emt 0:02:00]} 22. Bd5 {[%emt 0:05:30]} Bxd5 {[%emt 0:04:14]} 23. Nxd5 {[%emt 0:00:30]} b5 {[%emt 0:01:41]} 24. Nc7 {[%emt 0:04:30]} bxc4 {[%emt 0:01:59]} 25. Nxa8 {[%emt 0:00:30]} Rxa8 {[%emt 0:00:59]} 26. Bd4 {[%emt 0:00:30]} Rc8 {[%emt 0:03:30]} 27. Rac1 {[%emt 0:03:30]} Rb8 {[%emt 0:03:42]} 28. Bxe5 {[%emt 0:00:30]} Bxe5 {[%emt 0:00:30]} 29. Rxc4 {[%emt 0:00:30]} Rb6 {[%emt 0:00:00]} 30. g3 {[%emt 0:00:30]} Rf6 {[%emt 0:00:41]} 31. Rf1 {[%emt 0:00:00]} Ra6 {[%emt 0:00:00]} 32. a4 {[%emt 0:01:00]} Rb6 {[%emt 0:00:36]} 33. b4 {[%emt 0:01:30]} 1-0

[Event "10th Cesme Open-B 2024"]
[Site "Cesme"]
[Date "2024.06.23"]
[Round "1"]
[White "Akincioglu, Onur"]
[Black "Turgut, Hakan"]
[Result "0-1"]
[ECO "C56"]
[WhiteElo "1788"]
[BlackElo "1979"]
[Annotator "RC"]
[PlyCount "52"]
[EventDate "2024.06.23"]
[EventType "swiss"]
[EventCountry "TUR"]
[SourceTitle "playchess.com"]
[Source "ChessBase"]
[SourceQuality "1"]
[TimeControl "5400+30"]

1. e4 {[%emt 0:01:00]} e5 {[%emt 0:01:00]} 2. Nf3 {[%emt 0:00:30]} Nc6 {[%emt 0:00:30]} 3. d4 {[%emt 0:02:30]} exd4 {[%emt 0:00:30]} 4. Bc4 {[%emt 0:00:00]} Nf6 {[%emt 0:00:00]} 5. O-O {[%emt 0:02:00]} Nxe4 {[%emt 0:03:00]} 6. Re1 {[%emt 0:00:30]} d5 {[%emt 0:00:30]} 7. Bxd5 {[%emt 0:00:30]} Qxd5 {[%emt 0:00:30]} 8. Nc3 {[%emt 0:00:00]} Qh5 {[%emt 0:00:00]} 9. Nxe4 {[%emt 0:00:00]} Be6 {[%emt 0:00:00]} 10. Neg5 {[%emt 0:00:30]} O-O-O {[%emt 0:04:30]} 11. Nxe6 {[%emt 0:02:30]} fxe6 {[%emt 0:00:30]} 12. Rxe6 {[%emt 0:00:00]} Bd6 {[%emt 0:00:30]} 13. Qe2 {[%emt 0:06:00]} d3 {[%emt 0:04:30]} 14. cxd3 {[%emt 0:20:30]} Nd4 {[%emt 0:00:30]} 15. Qe4 {[%emt 0:00:00]} Nxe6 {[%emt 0:01:30]} 16. Qxe6+ {[%emt 0:00:00]} Kb8 {[%emt 0:00:30]} 17. Be3 {[%emt 0:00:30]} Rhf8 {[%emt 0:01:30]} 18. Rc1 {[%emt 0:01:30]} Rf6 {[%emt 0:08:30]} 19. Qe4 {[%emt 0:07:30]} Qg6 {[%emt 0:08:30]} 20. Bg5 {[%emt 0:08:30]} Re8 {[%emt 0:01:30]} 21. Qa4 {[%emt 0:00:00]} Rxf3 {[%emt 0:00:30]} 22. Be3 {[%emt 0:01:00]} b6 {[%emt 0:01:30]} 23. Qc6 {[%emt 0:00:30]} Rf6 {[%emt 0:01:30]} 24. Qb5 {[%emt 0:00:00]} Re5 {[%emt 0:00:30]} 25. Qd7 {[%emt 0:00:00]} Qe8 {[%emt 0:00:00]} 26. Qxg7 {[%emt 0:00:30]} Rxe3 {[%emt 0:00:00]} 0-1

[Event "10th Cesme Open-B 2024"]
[Site "Cesme"]
[Date "2024.06.23"]
[Round "1"]
[White "Gumustas, Ilgaz"]
[Black "Yelligedik, Murat"]
[Result "0-1"]
[ECO "B30"]
[WhiteElo "1786"]
[BlackElo "1984"]
[Annotator "RC"]
[PlyCount "86"]
[EventDate "2024.06.23"]
[EventType "swiss"]
[EventCountry "TUR"]
[SourceTitle "playchess.com"]
[Source "ChessBase"]
[SourceQuality "1"]
[TimeControl "5400+30"]

1. e4 {[%emt 0:01:00]} c5 {[%emt 0:01:00]} 2. Nf3 {[%emt 0:00:30]} Nc6 {[%emt 0:00:30]} 3. Bb5 {[%emt 0:00:00]} e6 {[%emt 0:00:00]} 4. Bxc6 {[%emt 0:00:00]} bxc6 {[%emt 0:00:00]} 5. d3 {[%emt 0:00:30]} Ne7 {[%emt 0:00:30]} 6. O-O {[%emt 0:00:30]} Ng6 {[%emt 0:00:00]} 7. e5 {[%emt 0:13:30]} Be7 {[%emt 0:00:00]} 8. Nc3 {[%emt 0:05:30]} O-O {[%emt 0:00:00]} 9. Ne4 {[%emt 0:06:30]} f6 {[%emt 0:02:00]} 10. exf6 {[%emt 0:02:30]} gxf6 {[%emt 0:00:30]} 11. Bh6 {[%emt 0:00:30]} Rf7 {[%emt 0:00:00]} 12. Qd2 {[%emt 0:05:30]} d5 {[%emt 0:02:00]} 13. Ng3 {[%emt 0:00:30]} e5 {[%emt 0:03:30]} 14. h4 {[%emt 0:01:30]} Bf8 {[%emt 0:01:30]} 15. h5 {[%emt 0:02:30]} Bxh6 {[%emt 0:00:00]} 16. Qxh6 {[%emt 0:00:00]} Nf4 {[%emt 0:00:00]} 17. Nh4 {[%emt 0:07:00]} Rg7 {[%emt 0:00:00]} 18. Rfe1 {[%emt 0:05:30]} Qf8 {[%emt 0:04:00]} 19. Kh1 {[%emt 0:01:30]} Bg4 {[%emt 0:02:30]} 20. Nhf5 {[%emt 0:08:30]} Rg5 {[%emt 0:01:30]} 21. Rxe5 {[%emt 0:07:30]} Kh8 {[%emt 0:05:30]} 22. Rae1 {[%emt 0:07:30]} Qxh6 {[%emt 0:00:30]} 23. Nxh6 {[%emt 0:00:30]} Rxe5 {[%emt 0:00:30]} 24. Rxe5 {[%emt 0:00:30]} fxe5 {[%emt 0:01:30]} 25. Nxg4 {[%emt 0:00:30]} Re8 {[%emt 0:00:30]} 26. h6 {[%emt 0:01:30]} Re6 {[%emt 0:00:30]} 27. Nf5 {[%emt 0:00:30]} Kg8 {[%emt 0:01:30]} 28. g3 {[%emt 0:00:30]} Nh5 {[%emt 0:03:30]} 29. Kg2 {[%emt 0:01:30]} Kf7 {[%emt 0:00:30]} 30. Kh3 {[%emt 0:00:30]} Nf6 {[%emt 0:04:30]} 31. Ng7 {[%emt 0:01:30]} Nxg4 {[%emt 0:01:30]} 32. Nxe6 {[%emt 0:00:00]} Nxf2+ {[%emt 0:00:00]} 33. Kg2 {[%emt 0:00:00]} Kxe6 {[%emt 0:00:00]} 34. Kxf2 {[%emt 0:00:30]} Kf5 {[%emt 0:00:00]} 35. Kf3 {[%emt 0:08:28]} Kg5 {[%emt 0:00:00]} 36. c3 {[%emt 0:00:00]} Kxh6 {[%emt 0:00:30]} 37. Kg4 {[%emt 0:00:20]} Kg6 {[%emt 0:00:30]} 38. a3 {[%emt 0:00:00]} h5+ {[%emt 0:01:30]} 39. Kh4 {[%emt 0:03:53]} e4 {[%emt 0:02:30]} 40. dxe4 {[%emt 0:00:30]} d4 {[%emt 0:00:30]} 41. cxd4 {[%emt 0:00:25]} cxd4 {[%emt 0:00:30]} 42. g4 {[%emt 0:00:30]} d3 {[%emt 0:00:00]} 43. gxh5+ {[%emt 0:00:00]} Kh6 {[%emt 0:00:00]} 0-1

[Event "10th Cesme Open-B 2024"]
[Site "Cesme"]
[Date "2024.06.23"]
[Round "1"]
[White "Ozkan, Kaan"]
[Black "Yildiz, Egehan"]
[Result "1-0"]
[ECO "B12"]
[WhiteElo "1781"]
[BlackElo "1984"]
[Annotator "RC"]
[PlyCount "85"]
[EventDate "2024.06.23"]
[EventType "swiss"]
[EventCountry "TUR"]
[SourceTitle "playchess.com"]
[Source "ChessBase"]
[SourceQuality "1"]
[TimeControl "5400+30"]

1. e4 {[%emt 0:01:00]} c6 {[%emt 0:01:00]} 2. Ne2 {[%emt 0:00:30]} d5 {[%emt 0:00:30]} 3. e5 {[%emt 0:00:30]} c5 {[%emt 0:00:30]} 4. d4 {[%emt 0:01:30]} Nc6 {[%emt 0:01:30]} 5. c3 {[%emt 0:02:30]} cxd4 {[%emt 0:01:30]} 6. cxd4 {[%emt 0:00:00]} Bf5 {[%emt 0:03:30]} 7. Nbc3 {[%emt 0:09:00]} e6 {[%emt 0:00:00]} 8. Ng3 {[%emt 0:03:30]} Bg6 {[%emt 0:03:00]} 9. h4 {[%emt 0:01:30]} h6 {[%emt 0:02:30]} 10. h5 {[%emt 0:02:30]} Bh7 {[%emt 0:00:00]} 11. Bd3 {[%emt 0:01:30]} Bxd3 {[%emt 0:04:00]} 12. Qxd3 {[%emt 0:00:00]} Qb6 {[%emt 0:06:30]} 13. Be3 {[%emt 0:08:00]} Bb4 {[%emt 0:10:30]} 14. O-O {[%emt 0:00:30]} Bxc3 {[%emt 0:00:30]} 15. bxc3 {[%emt 0:04:30]} Na5 {[%emt 0:06:30]} 16. Rab1 {[%emt 0:02:30]} Qc6 {[%emt 0:00:30]} 17. f4 {[%emt 0:02:30]} Rc8 {[%emt 0:03:30]} 18. f5 {[%emt 0:05:30]} Qxc3 {[%emt 0:07:30]} 19. Qb5+ {[%emt 0:00:30]} Rc6 {[%emt 0:00:30]} 20. Bf2 {[%emt 0:02:30]} a6 {[%emt 0:03:30]} 21. Qe2 {[%emt 0:03:30]} Ne7 {[%emt 0:09:30]} 22. f6 {[%emt 0:15:30]} gxf6 {[%emt 0:02:30]} 23. exf6 {[%emt 0:00:00]} Nc8 {[%emt 0:00:30]} 24. Nf5 {[%emt 0:03:00]} Qc2 {[%emt 0:13:43]} 25. Ng7+ {[%emt 0:01:30]} Kd8 {[%emt 0:00:14]} 26. Nxe6+ {[%emt 0:07:30]} fxe6 {[%emt 0:03:19]} 27. Qg4 {[%emt 0:00:30]} Nd6 {[%emt 0:02:53]} 28. f7 {[%emt 0:03:39]} Nxf7 {[%emt 0:06:50]} 29. Qg7 {[%emt 0:06:21]} Qh7 {[%emt 0:01:04]} 30. Bh4+ {[%emt 0:01:33]} Ng5 {[%emt 0:00:14]} 31. Bxg5+ {[%emt 0:00:37]} hxg5 {[%emt 0:00:44]} 32. Rf8+ {[%emt 0:00:09]} Rxf8 {[%emt 0:00:00]} 33. Qxh7 {[%emt 0:00:03]} Rc7 {[%emt 0:01:16]} 34. Qh6 {[%emt 0:01:41]} Re8 {[%emt 0:00:29]} 35. Re1 {[%emt 0:00:36]} Kd7 {[%emt 0:01:01]} 36. Qxg5 {[%emt 0:00:21]} Nc6 {[%emt 0:00:00]} 37. h6 {[%emt 0:00:47]} Re7 {[%emt 0:00:06]} 38. Qg8 {[%emt 0:01:19]} Rc8 {[%emt 0:01:01]} 39. h7 {[%emt 0:00:31]} Ree8 {[%emt 0:00:05]} 40. Qg7+ {[%emt 0:01:03]} Ne7 {[%emt 0:00:09]} 41. Qf7 {[%emt 0:00:11]} Rc6 {[%emt 0:00:43]} 42. Qxe8+ {[%emt 0:00:14]} Kxe8 {[%emt 0:00:17]} 43. h8=Q+ {[%emt 0:00:06]} 1-0